[Event "January 9 Early 2024"]
[Site "https://www.chess.com"]
[Date "2024.01.11"]
[Round "8"]
[White "Kruckenhauser, Arthur"]
[Black "Wantiez, Fabrice"]
[Result "0-1"]
[Board "140"]
[TimeControl "180+1"]
[WhiteFideId "1642812"]
[BlackFideId "202274"]
[WhiteElo "2543"]
[BlackElo "2427"]
[WhiteTeam "AUT"]
[BlackTeam "BEL"]
[WhiteClock "0:00:01"]
[BlackClock "0:00:16"]

1. d4 {[%clk 0:03:00]}  Nf6 {[%clk 0:02:59]} 2. Nf3 {[%clk 0:02:59]}  g6 {[%clk 0:03:00]} 3. Nc3 {[%clk 0:02:58]}  Bg7 {[%clk 0:03:00]} 4. e4 {[%clk 0:02:57]}  d6 {[%clk 0:03:01]} 5. Be3 {[%clk 0:02:56]}  c6 {[%clk 0:03:01]} 6. Qd2 {[%clk 0:02:56]}  b5 {[%clk 0:03:02]} 7. a3 {[%clk 0:02:55]}  O-O {[%clk 0:02:59]} 8. Bd3 {[%clk 0:02:53]}  a6 {[%clk 0:02:53]} 9. O-O-O {[%clk 0:02:43]}  b4 {[%clk 0:02:41]} 10. axb4 {[%clk 0:02:42]}  a5 {[%clk 0:02:41]} 11. b5 {[%clk 0:02:42]}  cxb5 {[%clk 0:02:42]} 12. Bxb5 {[%clk 0:02:42]}  Ba6 {[%clk 0:02:42]} 13. e5 {[%clk 0:02:32]}  Ng4 {[%clk 0:02:39]} 14. h3 {[%clk 0:02:28]}  Nxe3 {[%clk 0:02:39]} 15. fxe3 {[%clk 0:02:28]}  Bxb5 {[%clk 0:02:37]} 16. Nxb5 {[%clk 0:02:29]}  Qb6 {[%clk 0:02:37]} 17. Na3 {[%clk 0:02:24]}  d5 {[%clk 0:02:32]} 18. h4 {[%clk 0:02:12]}  h5 {[%clk 0:02:28]} 19. Ng5 {[%clk 0:02:10]}  f6 {[%clk 0:02:24]} 20. exf6 {[%clk 0:01:58]}  exf6 {[%clk 0:02:25]} 21. Nf3 {[%clk 0:01:58]}  Nc6 {[%clk 0:02:23]} 22. Rhg1 {[%clk 0:01:54]}  Rab8 {[%clk 0:02:20]} 23. c3 {[%clk 0:01:54]}  Rfc8 {[%clk 0:02:07]} 24. g4 {[%clk 0:01:52]}  Nb4 {[%clk 0:01:58]} 25. Kb1 {[%clk 0:01:44]}  hxg4 {[%clk 0:01:42]} 26. Rxg4 {[%clk 0:01:44]}  Qe6 {[%clk 0:01:42]} 27. Rdg1 {[%clk 0:01:30]}  Qf5+ {[%clk 0:01:39]} 28. Ka1 {[%clk 0:01:19]}  Qxf3 {[%clk 0:01:38]} 29. Rxg6 {[%clk 0:01:18]}  Rc7 {[%clk 0:01:38]} 30. Qh2 {[%clk 0:01:01]}  Rbb7 {[%clk 0:00:47]} 31. h5 {[%clk 0:00:49]}  Qxe3 {[%clk 0:00:45]} 32. h6 {[%clk 0:00:37]}  Nd3 {[%clk 0:00:44]} 33. Rxg7+ {[%clk 0:00:23]}  Rxg7 {[%clk 0:00:45]} 34. hxg7 {[%clk 0:00:11]}  Rxg7 {[%clk 0:00:44]} 35. Qb8+ {[%clk 0:00:11]}  Kh7 {[%clk 0:00:42]} 36. Rh1+ {[%clk 0:00:12]}  Kg6 {[%clk 0:00:40]} 37. Qh8 {[%clk 0:00:09]}  Qe2 {[%clk 0:00:33]} 38. Qb8 {[%clk 0:00:07]}  Kf5 {[%clk 0:00:24]} 39. Qc8+ {[%clk 0:00:05]}  Kf4 {[%clk 0:00:24]} 40. Qb8+ {[%clk 0:00:04]}  Kf3 {[%clk 0:00:21]} 41. Nb1 {[%clk 0:00:04]}  Rg2 {[%clk 0:00:17]} 42. Rh3+ {[%clk 0:00:04]}  Kg4 {[%clk 0:00:17]} 43. Qc8+ {[%clk 0:00:03]}  f5 {[%clk 0:00:16]} 44. Qg8+ {[%clk 0:00:02]}  Kxh3 {[%clk 0:00:16]} 45. Qh7+ {[%clk 0:00:02]}  Kg3 {[%clk 0:00:16]} 46. Qg7+ {[%clk 0:00:02]}  Kf2 {[%clk 0:00:17]} 47. Qb7 {[%clk 0:00:01]}  Ke1 {[%clk 0:00:16]} 48. Qb6 {[%clk 0:00:01]}  Qxb2+ {[%clk 0:00:16]} 0-1

[Event "January 9 Early 2024"]
[Site "https://www.chess.com"]
[Date "2024.01.11"]
[Round "8"]
[White "Blokhin, Sofia"]
[Black "Begunov, Konstantin"]
[Result "0-1"]
[Board "144"]
[TimeControl "180+1"]
[WhiteFideId "4508190"]
[BlackFideId "4118510"]
[WhiteElo "2295"]
[BlackElo "2480"]
[WhiteTeam "EST"]
[BlackTeam "RUS"]
[WhiteClock "0:00:02"]
[BlackClock "0:00:10"]

1. d4 {[%clk 0:03:00]}  d5 {[%clk 0:02:59]} 2. c4 {[%clk 0:03:00]}  c6 {[%clk 0:03:00]} 3. Nc3 {[%clk 0:03:00]}  Nf6 {[%clk 0:03:00]} 4. Nf3 {[%clk 0:03:00]}  dxc4 {[%clk 0:03:00]} 5. e3 {[%clk 0:02:58]}  b5 {[%clk 0:03:00]} 6. a4 {[%clk 0:02:57]}  b4 {[%clk 0:02:59]} 7. Na2 {[%clk 0:02:57]}  a5 {[%clk 0:02:59]} 8. Bxc4 {[%clk 0:02:56]}  Ba6 {[%clk 0:03:00]} 9. Bxa6 {[%clk 0:02:49]}  Nxa6 {[%clk 0:02:59]} 10. O-O {[%clk 0:02:49]}  e6 {[%clk 0:02:58]} 11. Bd2 {[%clk 0:02:47]}  c5 {[%clk 0:02:53]} 12. b3 {[%clk 0:02:43]}  Be7 {[%clk 0:02:29]} 13. Nc1 {[%clk 0:02:41]}  O-O {[%clk 0:02:27]} 14. Nd3 {[%clk 0:02:37]}  Qd5 {[%clk 0:02:18]} 15. Nde5 {[%clk 0:02:30]}  Rac8 {[%clk 0:01:49]} 16. Nc4 {[%clk 0:02:28]}  cxd4 {[%clk 0:01:43]} 17. Nb6 {[%clk 0:02:25]}  Qb7 {[%clk 0:01:16]} 18. Nxc8 {[%clk 0:02:23]}  Rxc8 {[%clk 0:01:17]} 19. Nxd4 {[%clk 0:02:18]}  Nd5 {[%clk 0:01:13]} 20. Rc1 {[%clk 0:02:11]}  Rd8 {[%clk 0:01:13]} 21. Qh5 {[%clk 0:02:04]}  Bf6 {[%clk 0:01:08]} 22. Nb5 {[%clk 0:01:47]}  Qe7 {[%clk 0:00:57]} 23. e4 {[%clk 0:01:16]}  Nb6 {[%clk 0:00:51]} 24. Be3 {[%clk 0:01:12]}  Nd7 {[%clk 0:00:50]} 25. Rc6 {[%clk 0:01:04]}  Ra8 {[%clk 0:00:37]} 26. Rfc1 {[%clk 0:01:01]}  g6 {[%clk 0:00:37]} 27. Qh6 {[%clk 0:00:54]}  Bg7 {[%clk 0:00:34]} 28. Rc8+ {[%clk 0:00:45]}  Rxc8 {[%clk 0:00:33]} 29. Rxc8+ {[%clk 0:00:45]}  Nf8 {[%clk 0:00:33]} 30. Qg5 {[%clk 0:00:26]}  Bf6 {[%clk 0:00:25]} 31. Qg3 {[%clk 0:00:14]}  Qd7 {[%clk 0:00:19]} 32. Rc1 {[%clk 0:00:11]}  Qd3 {[%clk 0:00:19]} 33. h3 {[%clk 0:00:08]}  Qxb3 {[%clk 0:00:19]} 34. Rc8 {[%clk 0:00:08]}  Qxa4 {[%clk 0:00:17]} 35. Qd6 {[%clk 0:00:07]}  Bg7 {[%clk 0:00:15]} 36. Bd4 {[%clk 0:00:04]}  Qd1+ {[%clk 0:00:12]} 37. Kh2 {[%clk 0:00:04]}  e5 {[%clk 0:00:12]} 38. Bxe5 {[%clk 0:00:04]}  Qxd6 {[%clk 0:00:11]} 39. Bxd6 {[%clk 0:00:04]}  b3 {[%clk 0:00:11]} 40. Bxf8 {[%clk 0:00:04]}  Bxf8 {[%clk 0:00:11]} 41. Nd4 {[%clk 0:00:03]}  b2 {[%clk 0:00:10]} 42. Nc6 {[%clk 0:00:02]}  b1=Q {[%clk 0:00:09]} 43. Ne7+ {[%clk 0:00:02]}  Kg7 {[%clk 0:00:10]} 0-1

[Event "January 9 Early 2024"]
[Site "https://www.chess.com"]
[Date "2024.01.11"]
[Round "8"]
[White "Sychev, Klementy"]
[Black "McCoy, Owen"]
[Result "1-0"]
[Board "146"]
[TimeControl "180+1"]
[WhiteFideId "4114060"]
[BlackFideId "30924502"]
[WhiteElo "2795"]
[BlackElo "2603"]
[WhiteTeam "FID"]
[BlackTeam "USA"]
[WhiteClock "0:00:03"]
[BlackClock "0:00:03"]

1. e4 {[%clk 0:03:00]}  e5 {[%clk 0:02:59]} 2. Nc3 {[%clk 0:03:00]}  Nc6 {[%clk 0:02:58]} 3. g3 {[%clk 0:03:00]}  Nf6 {[%clk 0:02:57]} 4. Bg2 {[%clk 0:03:00]}  Bc5 {[%clk 0:02:58]} 5. d3 {[%clk 0:03:01]}  d6 {[%clk 0:02:58]} 6. Nge2 {[%clk 0:03:00]}  Be6 {[%clk 0:02:52]} 7. h3 {[%clk 0:02:52]}  Nd4 {[%clk 0:02:41]} 8. O-O {[%clk 0:02:42]}  Qd7 {[%clk 0:02:38]} 9. Kh2 {[%clk 0:02:42]}  h5 {[%clk 0:02:25]} 10. f4 {[%clk 0:02:11]}  Nxe2 {[%clk 0:01:55]} 11. Qxe2 {[%clk 0:02:08]}  Bg4 {[%clk 0:01:43]} 12. Qe1 {[%clk 0:02:06]}  h4 {[%clk 0:01:39]} 13. gxh4 {[%clk 0:01:55]}  exf4 {[%clk 0:00:52]} 14. e5 {[%clk 0:01:25]}  dxe5 {[%clk 0:00:21]} 15. Qxe5+ {[%clk 0:01:25]}  Be7 {[%clk 0:00:21]} 16. Bxf4 {[%clk 0:01:00]}  Rh5 {[%clk 0:00:20]} 17. Qxc7 {[%clk 0:00:43]}  Rc8 {[%clk 0:00:16]} 18. Qxd7+ {[%clk 0:00:42]}  Bxd7 {[%clk 0:00:17]} 19. Bxb7 {[%clk 0:00:34]}  Rcc5 {[%clk 0:00:17]} 20. Bg3 {[%clk 0:00:23]}  g5 {[%clk 0:00:12]} 21. Rae1 {[%clk 0:00:20]}  Kd8 {[%clk 0:00:08]} 22. d4 {[%clk 0:00:15]}  Rc4 {[%clk 0:00:05]} 23. Be5 {[%clk 0:00:15]}  Ne8 {[%clk 0:00:03]} 24. Bd5 {[%clk 0:00:12]}  Rb4 {[%clk 0:00:02]} 25. Bb3 {[%clk 0:00:09]}  Rxh4 {[%clk 0:00:02]} 26. Re3 {[%clk 0:00:06]}  f6 {[%clk 0:00:02]} 27. Bg3 {[%clk 0:00:04]}  Rxh3+ {[%clk 0:00:02]} 28. Kg2 {[%clk 0:00:04]}  Rxd4 {[%clk 0:00:03]} 29. Rfe1 {[%clk 0:00:03]}  Rd2+ {[%clk 0:00:03]} 30. R1e2 {[%clk 0:00:03]}  Rxe2+ {[%clk 0:00:03]} 31. Nxe2 {[%clk 0:00:03]}  Rh7 {[%clk 0:00:03]} 32. Nd4 {[%clk 0:00:03]}  Bc5 {[%clk 0:00:03]} 33. Ne6+ {[%clk 0:00:03]}  Bxe6 {[%clk 0:00:03]} 34. Rxe6 {[%clk 0:00:03]}  Re7 {[%clk 0:00:03]} 35. Rc6 {[%clk 0:00:03]}  Bb6 {[%clk 0:00:03]} 36. Be6 {[%clk 0:00:03]}  Bc7 {[%clk 0:00:03]} 37. Bf2 {[%clk 0:00:03]}  Nd6 {[%clk 0:00:01]} 38. Bh3 {[%clk 0:00:03]}  Re5 {[%clk 0:00:02]} 39. Bd4 {[%clk 0:00:02]}  Rd5 {[%clk 0:00:02]} 40. Bxf6+ {[%clk 0:00:02]}  Ke8 {[%clk 0:00:03]} 41. Rxc7 {[%clk 0:00:03]}  Rd2+ {[%clk 0:00:03]} 42. Kf1 {[%clk 0:00:03]}  Ne4 {[%clk 0:00:03]} 43. Re7+ {[%clk 0:00:02]}  Kf8 {[%clk 0:00:03]} 44. Rxe4 {[%clk 0:00:03]} 1-0

[Event "January 9 Early 2024"]
[Site "https://www.chess.com"]
[Date "2024.01.11"]
[Round "8"]
[White "Zhu, Hengyi"]
[Black "Zemlyanskii, Ivan"]
[Result "1/2-1/2"]
[Board "147"]
[TimeControl "180+1"]
[WhiteFideId "8611211"]
[BlackFideId "24249971"]
[WhiteElo "2799"]
[BlackElo "2982"]
[WhiteTeam "CHN"]
[BlackTeam "RUS"]
[WhiteClock "0:00:20"]
[BlackClock "0:00:01"]

1. e4 {[%clk 0:03:00]}  c5 {[%clk 0:03:00]} 2. Nf3 {[%clk 0:03:01]}  e6 {[%clk 0:03:01]} 3. c3 {[%clk 0:03:01]}  d5 {[%clk 0:03:01]} 4. exd5 {[%clk 0:03:00]}  Qxd5 {[%clk 0:03:02]} 5. d4 {[%clk 0:03:01]}  Nf6 {[%clk 0:03:02]} 6. Na3 {[%clk 0:03:01]}  Qd8 {[%clk 0:03:03]} 7. Nc2 {[%clk 0:02:59]}  Nc6 {[%clk 0:03:03]} 8. Bd3 {[%clk 0:02:58]}  Be7 {[%clk 0:02:43]} 9. O-O {[%clk 0:02:58]}  O-O {[%clk 0:02:44]} 10. Qe2 {[%clk 0:02:58]}  cxd4 {[%clk 0:02:37]} 11. Ncxd4 {[%clk 0:02:58]}  Bd7 {[%clk 0:02:32]} 12. Nxc6 {[%clk 0:02:55]}  Bxc6 {[%clk 0:02:33]} 13. Ne5 {[%clk 0:02:55]}  Qc7 {[%clk 0:02:26]} 14. Nxc6 {[%clk 0:02:52]}  Qxc6 {[%clk 0:02:27]} 15. Rd1 {[%clk 0:02:48]}  Rfd8 {[%clk 0:02:24]} 16. Bf4 {[%clk 0:02:39]}  h6 {[%clk 0:01:45]} 17. h3 {[%clk 0:02:34]}  Bd6 {[%clk 0:01:41]} 18. Be3 {[%clk 0:01:47]}  Bc5 {[%clk 0:01:40]} 19. Bf4 {[%clk 0:01:42]}  a6 {[%clk 0:01:37]} 20. Bc2 {[%clk 0:01:36]}  Qb6 {[%clk 0:01:20]} 21. b4 {[%clk 0:01:33]}  Bd6 {[%clk 0:01:14]} 22. Be3 {[%clk 0:01:25]}  Qc7 {[%clk 0:01:13]} 23. Rac1 {[%clk 0:01:06]}  Bf4 {[%clk 0:00:56]} 24. Bb3 {[%clk 0:01:02]}  Rac8 {[%clk 0:00:50]} 25. c4 {[%clk 0:01:02]}  Bxe3 {[%clk 0:00:47]} 26. Qxe3 {[%clk 0:01:03]}  a5 {[%clk 0:00:45]} 27. a3 {[%clk 0:01:03]}  b6 {[%clk 0:00:39]} 28. Rxd8+ {[%clk 0:00:59]}  Qxd8 {[%clk 0:00:32]} 29. c5 {[%clk 0:00:59]}  axb4 {[%clk 0:00:29]} 30. axb4 {[%clk 0:00:59]}  bxc5 {[%clk 0:00:28]} 31. Rxc5 {[%clk 0:00:59]}  Ra8 {[%clk 0:00:24]} 32. g3 {[%clk 0:00:48]}  Qd6 {[%clk 0:00:21]} 33. Kg2 {[%clk 0:00:47]}  Nd7 {[%clk 0:00:18]} 34. Rc4 {[%clk 0:00:42]}  Nb6 {[%clk 0:00:17]} 35. Qf3 {[%clk 0:00:37]}  Ra3 {[%clk 0:00:15]} 36. Rc6 {[%clk 0:00:36]}  Qd8 {[%clk 0:00:10]} 37. b5 {[%clk 0:00:30]}  Nd5 {[%clk 0:00:08]} 38. Bxd5 {[%clk 0:00:28]}  Rxf3 {[%clk 0:00:07]} 39. Bxf3 {[%clk 0:00:28]}  g5 {[%clk 0:00:03]} 40. b6 {[%clk 0:00:28]}  Qb8 {[%clk 0:00:04]} 41. g4 {[%clk 0:00:21]}  Kg7 {[%clk 0:00:04]} 42. Be4 {[%clk 0:00:20]}  Qb7 {[%clk 0:00:02]} 43. Bf3 {[%clk 0:00:20]}  Qb8 {[%clk 0:00:03]} 44. Be4 {[%clk 0:00:20]}  Kf6 {[%clk 0:00:01]} 45. Bf3 {[%clk 0:00:20]}  Kg7 {[%clk 0:00:01]} 1/2-1/2

[Event "January 9 Early 2024"]
[Site "https://www.chess.com"]
[Date "2024.01.11"]
[Round "8"]
[White "Iljin, Timofey"]
[Black "Csonka, Balazs"]
[Result "0-1"]
[Board "148"]
[TimeControl "180+1"]
[WhiteFideId "14110180"]
[BlackFideId "742910"]
[WhiteElo "2545"]
[BlackElo "2709"]
[WhiteTeam "UKR"]
[BlackTeam "HUN"]
[WhiteClock "0:00:01"]
[BlackClock "0:00:04"]

1. e4 {[%clk 0:03:00]}  e5 {[%clk 0:02:58]} 2. Nf3 {[%clk 0:02:55]}  Nc6 {[%clk 0:02:57]} 3. d4 {[%clk 0:02:54]}  exd4 {[%clk 0:02:56]} 4. c3 {[%clk 0:02:54]}  Nf6 {[%clk 0:02:41]} 5. e5 {[%clk 0:02:50]}  Nd5 {[%clk 0:02:42]} 6. cxd4 {[%clk 0:02:50]}  Bb4+ {[%clk 0:02:42]} 7. Bd2 {[%clk 0:02:49]}  Bxd2+ {[%clk 0:02:42]} 8. Nbxd2 {[%clk 0:02:28]}  O-O {[%clk 0:02:40]} 9. Bd3 {[%clk 0:02:24]}  Nf4 {[%clk 0:02:28]} 10. Bf1 {[%clk 0:02:24]}  d6 {[%clk 0:02:28]} 11. g3 {[%clk 0:02:18]}  Ng6 {[%clk 0:02:15]} 12. h4 {[%clk 0:01:53]}  Re8 {[%clk 0:01:44]} 13. h5 {[%clk 0:01:28]}  Nf8 {[%clk 0:01:44]} 14. Nc4 {[%clk 0:01:10]}  Bg4 {[%clk 0:01:01]} 15. Be2 {[%clk 0:01:10]}  dxe5 {[%clk 0:00:49]} 16. dxe5 {[%clk 0:01:04]}  Bxf3 {[%clk 0:00:41]} 17. Bxf3 {[%clk 0:01:03]}  Nxe5 {[%clk 0:00:41]} 18. Nxe5 {[%clk 0:00:58]}  Rxe5+ {[%clk 0:00:40]} 19. Kf1 {[%clk 0:00:58]}  c6 {[%clk 0:00:37]} 20. Kg2 {[%clk 0:00:57]}  Qf6 {[%clk 0:00:32]} 21. Qb3 {[%clk 0:00:53]}  Rb5 {[%clk 0:00:29]} 22. Qe3 {[%clk 0:00:45]}  Rxb2 {[%clk 0:00:25]} 23. a4 {[%clk 0:00:39]}  Ne6 {[%clk 0:00:21]} 24. Rad1 {[%clk 0:00:40]}  h6 {[%clk 0:00:18]} 25. a5 {[%clk 0:00:39]}  Ng5 {[%clk 0:00:14]} 26. Bg4 {[%clk 0:00:40]}  Rf8 {[%clk 0:00:13]} 27. Rd4 {[%clk 0:00:32]}  b6 {[%clk 0:00:12]} 28. a6 {[%clk 0:00:32]}  Ne6 {[%clk 0:00:11]} 29. Rd6 {[%clk 0:00:27]}  c5 {[%clk 0:00:08]} 30. Rhd1 {[%clk 0:00:20]}  Qg5 {[%clk 0:00:05]} 31. Qc3 {[%clk 0:00:13]}  Ra2 {[%clk 0:00:03]} 32. Qc4 {[%clk 0:00:07]}  Ra3 {[%clk 0:00:02]} 33. Rd7 {[%clk 0:00:07]}  Kh8 {[%clk 0:00:01]} 34. Re1 {[%clk 0:00:05]}  Qf6 {[%clk 0:00:01]} 35. Qc1 {[%clk 0:00:05]}  Rc3 {[%clk 0:00:02]} 36. Qd2 {[%clk 0:00:05]}  Rc4 {[%clk 0:00:02]} 37. Bh3 {[%clk 0:00:04]}  Rd4 {[%clk 0:00:03]} 38. Rxd4 {[%clk 0:00:03]}  Qxd4 {[%clk 0:00:03]} 39. Qe2 {[%clk 0:00:03]}  Qd5+ {[%clk 0:00:03]} 40. Kh2 {[%clk 0:00:02]}  Nd4 {[%clk 0:00:04]} 41. Qd1 {[%clk 0:00:01]}  Nf3+ {[%clk 0:00:04]} 0-1

[Event "January 9 Early 2024"]
[Site "https://www.chess.com"]
[Date "2024.01.11"]
[Round "8"]
[White "Recuero Guerra, Javier"]
[Black "Derjabin, Ilja"]
[Result "0-1"]
[Board "149"]
[TimeControl "180+1"]
[WhiteFideId "2254085"]
[BlackFideId "14104768"]
[WhiteElo "2286"]
[BlackElo "2512"]
[WhiteTeam "ESP"]
[BlackTeam "UKR"]
[WhiteClock "0:00:01"]
[BlackClock "0:00:06"]

1. e4 {[%clk 0:03:00]}  c5 {[%clk 0:02:10]} 2. Nf3 {[%clk 0:02:58]}  d6 {[%clk 0:02:08]} 3. c3 {[%clk 0:02:57]}  Nf6 {[%clk 0:02:04]} 4. Be2 {[%clk 0:02:56]}  g6 {[%clk 0:02:01]} 5. O-O {[%clk 0:02:55]}  Bg7 {[%clk 0:02:02]} 6. Re1 {[%clk 0:02:55]}  O-O {[%clk 0:02:01]} 7. Bf1 {[%clk 0:02:55]}  Bg4 {[%clk 0:01:58]} 8. h3 {[%clk 0:02:54]}  Bxf3 {[%clk 0:01:58]} 9. Qxf3 {[%clk 0:02:55]}  Nc6 {[%clk 0:01:58]} 10. Qd1 {[%clk 0:02:43]}  a6 {[%clk 0:01:52]} 11. d4 {[%clk 0:02:38]}  Rc8 {[%clk 0:01:49]} 12. d5 {[%clk 0:02:32]}  Nb8 {[%clk 0:01:40]} 13. a4 {[%clk 0:02:29]}  e6 {[%clk 0:01:35]} 14. dxe6 {[%clk 0:02:25]}  fxe6 {[%clk 0:01:35]} 15. Qb3 {[%clk 0:02:15]}  Qd7 {[%clk 0:01:25]} 16. Bf4 {[%clk 0:01:31]}  Nc6 {[%clk 0:01:21]} 17. Nd2 {[%clk 0:01:20]}  Nh5 {[%clk 0:01:17]} 18. Bh2 {[%clk 0:01:16]}  Be5 {[%clk 0:01:12]} 19. Bxe5 {[%clk 0:01:03]}  Nxe5 {[%clk 0:01:13]} 20. Nc4 {[%clk 0:00:56]}  Qf7 {[%clk 0:01:10]} 21. Qc2 {[%clk 0:00:30]}  Nxc4 {[%clk 0:01:06]} 22. Bxc4 {[%clk 0:00:31]}  d5 {[%clk 0:01:07]} 23. Bf1 {[%clk 0:00:27]}  d4 {[%clk 0:00:59]} 24. f3 {[%clk 0:00:20]}  e5 {[%clk 0:00:56]} 25. b3 {[%clk 0:00:17]}  Kg7 {[%clk 0:00:54]} 26. Rad1 {[%clk 0:00:16]}  Qf4 {[%clk 0:00:48]} 27. Bc4 {[%clk 0:00:14]}  Qg5 {[%clk 0:00:43]} 28. Qf2 {[%clk 0:00:10]}  Rc7 {[%clk 0:00:31]} 29. cxd4 {[%clk 0:00:04]}  cxd4 {[%clk 0:00:31]} 30. Kh1 {[%clk 0:00:03]}  Nf4 {[%clk 0:00:27]} 31. Kh2 {[%clk 0:00:01]}  b5 {[%clk 0:00:23]} 32. h4 {[%clk 0:00:02]}  Qe7 {[%clk 0:00:14]} 33. Bf1 {[%clk 0:00:02]}  bxa4 {[%clk 0:00:13]} 34. bxa4 {[%clk 0:00:02]}  Rfc8 {[%clk 0:00:13]} 35. Rb1 {[%clk 0:00:02]}  Rc2 {[%clk 0:00:13]} 36. Qg3 {[%clk 0:00:02]}  Nh5 {[%clk 0:00:10]} 37. Qg4 {[%clk 0:00:02]}  R8c7 {[%clk 0:00:08]} 38. Rb3 {[%clk 0:00:02]}  Qf7 {[%clk 0:00:07]} 39. Reb1 {[%clk 0:00:02]}  Nf6 {[%clk 0:00:07]} 40. Qg3 {[%clk 0:00:01]}  h6 {[%clk 0:00:06]} 0-1

[Event "January 9 Early 2024"]
[Site "https://www.chess.com"]
[Date "2024.01.11"]
[Round "8"]
[White "Mayaud, Raphael"]
[Black "Kraus, Tomas"]
[Result "0-1"]
[Board "151"]
[TimeControl "180+1"]
[WhiteFideId "627151"]
[BlackFideId "331708"]
[WhiteElo "2295"]
[BlackElo "2351"]
[WhiteTeam "FRA"]
[BlackTeam "CZE"]
[WhiteClock "0:00:08"]
[BlackClock "0:00:09"]

1. d4 {[%clk 0:02:56]}  d5 {[%clk 0:02:58]} 2. Nf3 {[%clk 0:02:55]}  Nf6 {[%clk 0:02:58]} 3. c4 {[%clk 0:02:55]}  c6 {[%clk 0:02:56]} 4. Nc3 {[%clk 0:02:51]}  dxc4 {[%clk 0:02:56]} 5. a4 {[%clk 0:02:43]}  Nd5 {[%clk 0:02:38]} 6. e4 {[%clk 0:02:39]}  Nxc3 {[%clk 0:02:38]} 7. bxc3 {[%clk 0:02:38]}  b5 {[%clk 0:02:39]} 8. g3 {[%clk 0:02:35]}  Bb7 {[%clk 0:02:15]} 9. Bg2 {[%clk 0:02:34]}  e6 {[%clk 0:02:05]} 10. O-O {[%clk 0:02:32]}  Be7 {[%clk 0:02:04]} 11. Qc2 {[%clk 0:02:01]}  O-O {[%clk 0:02:01]} 12. Rd1 {[%clk 0:01:42]}  a6 {[%clk 0:01:50]} 13. Ba3 {[%clk 0:01:31]}  Bxa3 {[%clk 0:01:45]} 14. Rxa3 {[%clk 0:01:31]}  Qe7 {[%clk 0:01:42]} 15. Ra2 {[%clk 0:01:31]}  Nd7 {[%clk 0:01:36]} 16. Rb1 {[%clk 0:01:17]}  e5 {[%clk 0:01:17]} 17. h4 {[%clk 0:01:11]}  Rfb8 {[%clk 0:01:05]} 18. Nd2 {[%clk 0:00:43]}  exd4 {[%clk 0:01:03]} 19. cxd4 {[%clk 0:00:43]}  Nb6 {[%clk 0:00:38]} 20. axb5 {[%clk 0:00:43]}  cxb5 {[%clk 0:00:31]} 21. d5 {[%clk 0:00:43]}  Na4 {[%clk 0:00:24]} 22. f4 {[%clk 0:00:29]}  Nc5 {[%clk 0:00:22]} 23. e5 {[%clk 0:00:23]}  Nd3 {[%clk 0:00:17]} 24. Rd1 {[%clk 0:00:23]}  Qc5+ {[%clk 0:00:16]} 25. Kh2 {[%clk 0:00:22]}  Bxd5 {[%clk 0:00:14]} 26. Nf3 {[%clk 0:00:17]}  Qc6 {[%clk 0:00:10]} 27. Nd4 {[%clk 0:00:15]}  Qb7 {[%clk 0:00:10]} 28. Bh3 {[%clk 0:00:13]}  Nf2 {[%clk 0:00:07]} 29. Qxf2 {[%clk 0:00:12]}  b4 {[%clk 0:00:06]} 30. f5 {[%clk 0:00:11]}  b3 {[%clk 0:00:06]} 31. Rb2 {[%clk 0:00:10]}  c3 {[%clk 0:00:05]} 32. Rxb3 {[%clk 0:00:07]}  Bxb3 {[%clk 0:00:04]} 33. Nxb3 {[%clk 0:00:05]}  Qxb3 {[%clk 0:00:04]} 34. Rc1 {[%clk 0:00:06]}  Qb2 {[%clk 0:00:03]} 35. Rc2 {[%clk 0:00:05]}  Qb3 {[%clk 0:00:03]} 36. f6 {[%clk 0:00:05]}  Qxc2 {[%clk 0:00:03]} 37. Qxc2 {[%clk 0:00:02]}  Rb2 {[%clk 0:00:04]} 38. Bf5 {[%clk 0:00:03]}  Rxc2+ {[%clk 0:00:04]} 39. Bxc2 {[%clk 0:00:04]}  Rb8 {[%clk 0:00:05]} 40. Kh3 {[%clk 0:00:05]}  Rb2 {[%clk 0:00:06]} 41. Be4 {[%clk 0:00:05]}  c2 {[%clk 0:00:06]} 42. Bxc2 {[%clk 0:00:04]}  Rxc2 {[%clk 0:00:07]} 43. g4 {[%clk 0:00:05]}  gxf6 {[%clk 0:00:07]} 44. g5 {[%clk 0:00:05]}  fxg5 {[%clk 0:00:07]} 45. h5 {[%clk 0:00:06]}  Rc4 {[%clk 0:00:07]} 46. Kg3 {[%clk 0:00:06]}  h6 {[%clk 0:00:07]} 47. Kf3 {[%clk 0:00:06]}  Kf8 {[%clk 0:00:08]} 48. Ke3 {[%clk 0:00:07]}  Ke7 {[%clk 0:00:08]} 49. Kd3 {[%clk 0:00:08]}  Rf4 {[%clk 0:00:09]} 0-1